[Event "Live Chess"]
[Site "Chess.com"]
[Date "2023.05.20"]
[Round "-"]
[White "Wild_Tiger"]
[Black "Singapourfeuj"]
[Result "0-1"]
[WhiteElo "1072"]
[BlackElo "2238"]
[TimeControl "300"]
[EndTime "13:43:31 PDT"]
[Termination "Singapourfeuj won by resignation"]

1. d4 {[%clk 0:04:57.9]} 1... Nf6 {[%clk 0:04:55.9]} 2. Nf3 {[%clk 0:04:57]}
2... g6 {[%clk 0:04:54.4]} 3. e3 {[%clk 0:04:56.9]} 3... Bg7 {[%clk 0:04:53.1]}
4. Bd3 {[%clk 0:04:55.4]} 4... O-O {[%clk 0:04:52]} 5. h4 {[%clk 0:04:51]} 5...
d5 {[%clk 0:04:51.7]} 6. Ne5 {[%clk 0:04:45.4]} 6... Nbd7 {[%clk 0:04:49.6]} 7.
f4 {[%clk 0:04:36.3]} 7... Ne4 {[%clk 0:04:47.4]} 8. h5 {[%clk 0:04:20.7]} 8...
Nxe5 {[%clk 0:04:44.1]} 9. fxe5 {[%clk 0:04:11.6]} 9... f6 {[%clk 0:04:37.1]}
10. hxg6 {[%clk 0:04:08.5]} 10... hxg6 {[%clk 0:04:36.1]} 11. Nd2 {[%clk
0:03:56]} 11... Bf5 {[%clk 0:04:30.4]} 12. Nxe4 {[%clk 0:03:33.6]} 12... Bxe4
{[%clk 0:04:28.5]} 13. Bxe4 {[%clk 0:03:32.2]} 13... dxe4 {[%clk 0:04:27.7]} 14.
Qg4 {[%clk 0:03:28.9]} 14... fxe5 {[%clk 0:04:18.1]} 15. Qxg6 {[%clk 0:03:24.8]}
15... Qd6 {[%clk 0:04:16.1]} 16. Qh7+ {[%clk 0:03:16.5]} 16... Kf7 {[%clk
0:04:15.1]} 17. Rf1+ {[%clk 0:03:07.8]} 17... Ke8 {[%clk 0:04:13.4]} 18. Qxg7
{[%clk 0:03:03]} 18... Rxf1+ {[%clk 0:04:11.5]} 19. Kxf1 {[%clk 0:02:57.5]}
19... exd4 {[%clk 0:04:08.6]} 20. Qg8+ {[%clk 0:02:51]} 20... Kd7 {[%clk
0:04:07.7]} 21. Qxa8 {[%clk 0:02:46.8]} 21... d3 {[%clk 0:04:03.4]} 22. Bd2
{[%clk 0:02:24.1]} 22... dxc2 {[%clk 0:04:01.8]} 23. Ke1 {[%clk 0:02:18.5]}
23... Qg3+ {[%clk 0:03:58.2]} 24. Kf1 {[%clk 0:02:11.8]} 24... Qd6 {[%clk
0:03:56.2]} 25. Ke2 {[%clk 0:02:05.5]} 25... Qg3 {[%clk 0:03:41.4]} 26. Rg1
{[%clk 0:01:43]} 26... Qg4+ {[%clk 0:03:33.5]} 27. Kf1 {[%clk 0:01:37.2]} 27...
Qd1+ {[%clk 0:03:26.9]} 28. Kf2 {[%clk 0:01:36.5]} 28... Qxd2+ {[%clk
0:03:25.4]} 29. Kg3 {[%clk 0:01:34.7]} 29... Qxe3+ {[%clk 0:03:23.6]} 30. Kh2
{[%clk 0:01:32]} 30... Qxg1+ {[%clk 0:03:20.5]} 31. Kxg1 {[%clk 0:01:30.3]}
31... c1=Q+ {[%clk 0:03:18.9]} 32. Kh2 {[%clk 0:01:30.2]} 32... Qf4+ {[%clk
0:03:17.1]} 33. g3 {[%clk 0:01:28.1]} 33... Qf2+ {[%clk 0:03:15.9]} 34. Kh3
{[%clk 0:01:27.6]} 34... Qxb2 {[%clk 0:03:14]} 35. a4 {[%clk 0:01:19.6]} 35...
e3 {[%clk 0:03:12.6]} 36. Qxa7 {[%clk 0:01:11.3]} 36... e2 {[%clk 0:03:09.9]}
37. Qf2 {[%clk 0:00:59.6]} 37... Qe5 {[%clk 0:03:07.6]} 38. Qe1 {[%clk
0:00:38.6]} 38... Qe3 {[%clk 0:03:06.5]} 39. Kh4 {[%clk 0:00:33.2]} 39... Qd4+
{[%clk 0:03:01.2]} 40. g4 {[%clk 0:00:32]} 40... Qd1 {[%clk 0:03:00.1]} 41. Qg3
{[%clk 0:00:19.2]} 41... e1=Q {[%clk 0:02:58]} 42. Kh5 {[%clk 0:00:17.1]} 42...
Qxg3 {[%clk 0:02:55.7]} 0-1

[Event "Live Chess"]
[Site "Chess.com"]
[Date "2023.05.20"]
[Round "-"]
[White "lucaskk818"]
[Black "manthanit"]
[Result "1-0"]
[WhiteElo "1886"]
[BlackElo "1007"]
[TimeControl "300"]
[EndTime "13:43:37 PDT"]
[Termination "lucaskk818 won by resignation"]

1. d4 {[%clk 0:04:57.7]} 1... e6 {[%clk 0:04:54.9]} 2. c4 {[%clk 0:04:56.5]}
2... d5 {[%clk 0:04:54.3]} 3. Nf3 {[%clk 0:04:55.7]} 3... c5 {[%clk 0:04:53.2]}
4. cxd5 {[%clk 0:04:53.2]} 4... exd5 {[%clk 0:04:52.1]} 5. Nc3 {[%clk
0:04:52.5]} 5... a6 {[%clk 0:04:49.9]} 6. Bf4 {[%clk 0:04:49.3]} 6... Nc6 {[%clk
0:04:46.4]} 7. e3 {[%clk 0:04:45.9]} 7... Be6 {[%clk 0:04:40]} 8. Be2 {[%clk
0:04:42.4]} 8... Qb6 {[%clk 0:04:38.5]} 9. b3 {[%clk 0:04:35.2]} 9... cxd4
{[%clk 0:04:35.6]} 10. Nxd4 {[%clk 0:04:34.7]} 10... Bb4 {[%clk 0:04:32.8]} 11.
Rc1 {[%clk 0:04:27.9]} 11... Nf6 {[%clk 0:04:30.7]} 12. Nxe6 {[%clk 0:04:20.4]}
12... fxe6 {[%clk 0:04:28.1]} 13. O-O {[%clk 0:04:19.7]} 13... O-O {[%clk
0:04:26.5]} 14. h3 {[%clk 0:04:13.8]} 14... Rac8 {[%clk 0:04:02.9]} 15. Qc2
{[%clk 0:04:03.1]} 15... d4 {[%clk 0:03:49.2]} 16. Na4 {[%clk 0:03:59.2]} 16...
Qd8 {[%clk 0:03:28.6]} 17. Rfd1 {[%clk 0:03:48.5]} 17... e5 {[%clk 0:03:22.3]}
18. Bh2 {[%clk 0:03:45.5]} 18... b5 {[%clk 0:03:06.1]} 19. Nb2 {[%clk
0:03:41.1]} 19... Bc3 {[%clk 0:03:00.4]} 20. Nd3 {[%clk 0:03:13.9]} 20... Nb4
{[%clk 0:02:55.4]} 21. Nxb4 {[%clk 0:03:12]} 21... Bxb4 {[%clk 0:02:53.5]} 22.
Qxc8 {[%clk 0:03:10.4]} 22... Qxc8 {[%clk 0:02:51.7]} 23. Rxc8 {[%clk 0:03:10]}
23... Rxc8 {[%clk 0:02:50.6]} 24. exd4 {[%clk 0:03:09.5]} 24... exd4 {[%clk
0:02:43.6]} 25. Rxd4 {[%clk 0:02:58.4]} 25... Rc1+ {[%clk 0:02:41.7]} 26. Rd1
{[%clk 0:02:58]} 26... Bd2 {[%clk 0:02:30]} 27. Rxc1 {[%clk 0:02:55.1]} 27...
Bxc1 {[%clk 0:02:28.9]} 28. Kf1 {[%clk 0:02:52.5]} 28... Ne4 {[%clk 0:02:27.6]}
29. Bf3 {[%clk 0:02:47.7]} 29... Nd2+ {[%clk 0:02:26.1]} 30. Ke2 {[%clk
0:02:46]} 30... Nxf3 {[%clk 0:02:25.3]} 31. Kxf3 {[%clk 0:02:44.8]} 31... g6
{[%clk 0:02:23.2]} 32. Ke4 {[%clk 0:02:43.2]} 32... Kf7 {[%clk 0:02:22.6]} 33.
Kd5 {[%clk 0:02:42.5]} 33... Ke7 {[%clk 0:02:21.6]} 34. Kc6 {[%clk 0:02:41.5]}
34... Bd2 {[%clk 0:02:16.2]} 35. Kb6 {[%clk 0:02:39.5]} 35... a5 {[%clk
0:02:06]} 36. Kxb5 {[%clk 0:02:38.4]} 36... Ke6 {[%clk 0:02:05.6]} 37. Bc7
{[%clk 0:02:36]} 37... Kd5 {[%clk 0:01:59.6]} 38. Bxa5 {[%clk 0:02:34.1]} 1-0

[Event "Live Chess"]
[Site "Chess.com"]
[Date "2023.05.20"]
[Round "-"]
[White "Delacorta"]
[Black "trekker123"]
[Result "0-1"]
[WhiteElo "1422"]
[BlackElo "2087"]
[TimeControl "300"]
[EndTime "13:43:43 PDT"]
[Termination "trekker123 won by resignation"]

1. d4 {[%clk 0:04:57.2]} 1... d5 {[%clk 0:04:58.4]} 2. Nf3 {[%clk 0:04:56]} 2...
Nf6 {[%clk 0:04:56.9]} 3. e3 {[%clk 0:04:55]} 3... g6 {[%clk 0:04:54.8]} 4. Be2
{[%clk 0:04:47.5]} 4... Bg7 {[%clk 0:04:52.6]} 5. Nbd2 {[%clk 0:04:46.7]} 5...
O-O {[%clk 0:04:51.4]} 6. Nf1 {[%clk 0:04:45.8]} 6... c5 {[%clk 0:04:47.8]} 7.
Ng3 {[%clk 0:04:44.9]} 7... b6 {[%clk 0:04:36.5]} 8. h4 {[%clk 0:04:43.2]} 8...
h5 {[%clk 0:04:28.2]} 9. c3 {[%clk 0:04:01]} 9... Nbd7 {[%clk 0:04:18.1]} 10.
Ng5 {[%clk 0:03:50.3]} 10... Bb7 {[%clk 0:04:10.5]} 11. Bxh5 {[%clk 0:03:41.2]}
11... Nxh5 {[%clk 0:03:56]} 12. Nxh5 {[%clk 0:03:39.5]} 12... gxh5 {[%clk
0:03:55.5]} 13. Qxh5 {[%clk 0:03:37.6]} 13... Nf6 {[%clk 0:03:55.1]} 14. Qe2
{[%clk 0:03:08.5]} 14... cxd4 {[%clk 0:03:42.5]} 15. exd4 {[%clk 0:02:59.9]}
15... Qd7 {[%clk 0:03:36.3]} 16. h5 {[%clk 0:02:56.9]} 16... Bh6 {[%clk
0:03:08.9]} 17. Nxf7 {[%clk 0:02:29.6]} 17... Bxc1 {[%clk 0:02:24.6]} 18. Rxc1
{[%clk 0:02:27.7]} 18... Rxf7 {[%clk 0:02:19.1]} 19. h6 {[%clk 0:02:27]} 19...
Qg4 {[%clk 0:02:10.3]} 20. h7+ {[%clk 0:02:09.5]} 20... Kh8 {[%clk 0:02:03.6]}
21. Qe5 {[%clk 0:01:32.6]} 21... Qe4+ {[%clk 0:01:56.1]} 22. Qxe4 {[%clk
0:01:30.6]} 22... Nxe4 {[%clk 0:01:53.6]} 0-1

[Event "Live Chess"]
[Site "Chess.com"]
[Date "2023.05.20"]
[Round "-"]
[White "toog"]
[Black "AttackingSnowLeopard"]
[Result "1-0"]
[WhiteElo "2613"]
[BlackElo "2053"]
[TimeControl "300"]
[EndTime "13:43:51 PDT"]
[Termination "toog won by resignation"]

1. e4 {[%clk 0:04:57]} 1... e5 {[%clk 0:04:59.1]} 2. d4 {[%clk 0:04:54.9]} 2...
exd4 {[%clk 0:04:56.1]} 3. c3 {[%clk 0:04:52.7]} 3... d5 {[%clk 0:04:54.4]} 4.
exd5 {[%clk 0:04:46.1]} 4... Qxd5 {[%clk 0:04:53.4]} 5. cxd4 {[%clk 0:04:44.1]}
5... Nc6 {[%clk 0:04:51.5]} 6. Nf3 {[%clk 0:04:41.7]} 6... Bg4 {[%clk
0:04:50.3]} 7. Be2 {[%clk 0:04:40.3]} 7... Nf6 {[%clk 0:04:48.8]} 8. Nc3 {[%clk
0:04:38.5]} 8... Bb4 {[%clk 0:04:47]} 9. O-O {[%clk 0:04:37.5]} 9... Qd8 {[%clk
0:04:42.4]} 10. d5 {[%clk 0:04:32.5]} 10... Ne7 {[%clk 0:04:39.8]} 11. Qa4+
{[%clk 0:04:29.9]} 11... Qd7 {[%clk 0:04:27.5]} 12. Qxb4 {[%clk 0:04:27.6]}
12... O-O {[%clk 0:04:27]} 13. Ne5 {[%clk 0:04:24.3]} 13... Qf5 {[%clk
0:04:21.7]} 14. Nxg4 {[%clk 0:04:17.7]} 14... Nxg4 {[%clk 0:04:20.7]} 15. Qxg4
{[%clk 0:04:15.5]} 1-0

[Event "Live Chess"]
[Site "Chess.com"]
[Date "2023.05.20"]
[Round "-"]
[White "friarnator"]
[Black "flyingpuffins"]
[Result "1-0"]
[WhiteElo "1989"]
[BlackElo "1946"]
[TimeControl "300"]
[EndTime "13:43:58 PDT"]
[Termination "friarnator won by resignation"]

1. d4 {[%clk 0:04:58.1]} 1... d5 {[%clk 0:04:59]} 2. Nc3 {[%clk 0:04:57.3]} 2...
Nf6 {[%clk 0:04:53.3]} 3. Bf4 {[%clk 0:04:56.3]} 3... a6 {[%clk 0:04:52.5]} 4.
e3 {[%clk 0:04:55.2]} 4... c5 {[%clk 0:04:51.3]} 5. Nf3 {[%clk 0:04:52.5]} 5...
cxd4 {[%clk 0:04:48.8]} 6. exd4 {[%clk 0:04:51.3]} 6... Bg4 {[%clk 0:04:47.2]}
7. Be2 {[%clk 0:04:50]} 7... e6 {[%clk 0:04:46.4]} 8. O-O {[%clk 0:04:48.7]}
8... Bd6 {[%clk 0:04:45.6]} 9. Ne5 {[%clk 0:04:47.3]} 9... Bxe2 {[%clk
0:04:43.9]} 10. Nxe2 {[%clk 0:04:45.9]} 10... Nc6 {[%clk 0:04:43.5]} 11. c3
{[%clk 0:04:44.1]} 11... O-O {[%clk 0:04:41.8]} 12. Ng3 {[%clk 0:04:41.5]} 12...
Bc7 {[%clk 0:04:26.7]} 13. Re1 {[%clk 0:04:39.6]} 13... Nd7 {[%clk 0:04:25.8]}
14. Qg4 {[%clk 0:04:17.4]} 14... Nf6 {[%clk 0:04:19.4]} 15. Qf3 {[%clk
0:04:13.1]} 15... Nd7 {[%clk 0:04:17.3]} 16. Re2 {[%clk 0:03:50.1]} 16... Rc8
{[%clk 0:04:12.4]} 17. Rae1 {[%clk 0:03:47.3]} 17... Qf6 {[%clk 0:04:11.3]} 18.
Qg4 {[%clk 0:03:42.4]} 18... Ndxe5 {[%clk 0:04:04.5]} 19. dxe5 {[%clk
0:03:35.1]} 19... Qg6 {[%clk 0:04:02.5]} 20. Qf3 {[%clk 0:03:29.5]} 20... Bb6
{[%clk 0:04:00.2]} 21. h4 {[%clk 0:03:28.2]} 21... h6 {[%clk 0:03:44.8]} 22. h5
{[%clk 0:03:27]} 22... Qh7 {[%clk 0:03:43.6]} 23. Qg4 {[%clk 0:03:07.7]} 23...
Ne7 {[%clk 0:03:38.4]} 24. Kf1 {[%clk 0:03:01.8]} 24... Rc4 {[%clk 0:03:36.9]}
25. Qf3 {[%clk 0:02:53.6]} 25... Nf5 {[%clk 0:03:33.5]} 26. Nxf5 {[%clk
0:02:41.4]} 26... Qxf5 {[%clk 0:03:30.8]} 27. Be3 {[%clk 0:02:37.3]} 27... Qxf3
{[%clk 0:03:24.9]} 28. gxf3 {[%clk 0:02:37.2]} 28... Bc7 {[%clk 0:03:16.4]} 29.
Bd4 {[%clk 0:02:35.6]} 29... Bd8 {[%clk 0:03:07.9]} 30. f4 {[%clk 0:02:21]}
30... Be7 {[%clk 0:03:04.8]} 31. Re3 {[%clk 0:02:18]} 31... Rfc8 {[%clk
0:03:00.4]} 32. Rg3 {[%clk 0:02:16.6]} 32... b5 {[%clk 0:02:54.1]} 33. a3 {[%clk
0:02:14.8]} 33... a5 {[%clk 0:02:53]} 34. Ke2 {[%clk 0:02:14.1]} 34... b4 {[%clk
0:02:52]} 35. axb4 {[%clk 0:02:14]} 35... axb4 {[%clk 0:02:51.3]} 36. Reg1
{[%clk 0:02:13.6]} 36... bxc3 {[%clk 0:02:50.5]} 37. Rxg7+ {[%clk 0:02:11.7]}
37... Kh8 {[%clk 0:02:46.4]} 38. bxc3 {[%clk 0:02:10.6]} 38... Rf8 {[%clk
0:02:31.4]} 39. f5 {[%clk 0:01:45.6]} 39... exf5 {[%clk 0:02:25.6]} 40. e6
{[%clk 0:01:44.6]} 40... Rxd4 {[%clk 0:02:24.1]} 41. cxd4 {[%clk 0:01:38.7]}
41... Bf6 {[%clk 0:02:23.6]} 42. Rxf7 {[%clk 0:01:33.6]} 1-0

[Event "Live Chess"]
[Site "Chess.com"]
[Date "2023.05.20"]
[Round "-"]
[White "terrub10"]
[Black "Supertromp"]
[Result "0-1"]
[WhiteElo "725"]
[BlackElo "2191"]
[TimeControl "300"]
[EndTime "13:44:06 PDT"]
[Termination "Supertromp won by checkmate"]

1. d4 {[%clk 0:04:54.5]} 1... Nf6 {[%clk 0:04:54.5]} 2. Bg5 {[%clk 0:04:51.8]}
2... d5 {[%clk 0:04:51.5]} 3. Bxf6 {[%clk 0:04:48.3]} 3... exf6 {[%clk
0:04:51.4]} 4. Nc3 {[%clk 0:04:44.2]} 4... c6 {[%clk 0:04:46.5]} 5. Nf3 {[%clk
0:04:41.1]} 5... Bb4 {[%clk 0:04:43.1]} 6. e4 {[%clk 0:04:36.1]} 6... O-O {[%clk
0:04:40.7]} 7. exd5 {[%clk 0:04:34.4]} 7... Qxd5 {[%clk 0:04:40.6]} 8. Qd2
{[%clk 0:04:23.8]} 8... Re8+ {[%clk 0:04:38.1]} 9. Be2 {[%clk 0:04:21.7]} 9...
Bg4 {[%clk 0:04:36.7]} 10. Nxd5 {[%clk 0:04:19.5]} 10... Bxd2+ {[%clk
0:04:33.8]} 11. Kxd2 {[%clk 0:04:18.2]} 11... cxd5 {[%clk 0:04:32.8]} 12. Ne1
{[%clk 0:04:11.6]} 12... Rxe2+ {[%clk 0:04:31.2]} 13. Kd1 {[%clk 0:04:07.8]}
13... Rxf2+ {[%clk 0:04:24.8]} 14. Nf3 {[%clk 0:03:54.7]} 14... Rxf3 {[%clk
0:04:19.3]} 15. gxf3 {[%clk 0:03:53]} 15... Bxf3+ {[%clk 0:04:19.2]} 16. Kd2
{[%clk 0:03:48.1]} 16... Bxh1 {[%clk 0:04:19.1]} 17. Rxh1 {[%clk 0:03:45.7]}
17... Nc6 {[%clk 0:04:19]} 18. Re1 {[%clk 0:03:44]} 18... Nxd4 {[%clk
0:04:17.5]} 19. Re8+ {[%clk 0:03:41.2]} 19... Rxe8 {[%clk 0:04:15.8]} 20. c3
{[%clk 0:03:39.2]} 20... Nf3+ {[%clk 0:04:14.2]} 21. Kd3 {[%clk 0:03:35.7]}
21... Nxh2 {[%clk 0:04:14.1]} 22. c4 {[%clk 0:03:33.3]} 22... Ng4 {[%clk
0:04:14]} 23. cxd5 {[%clk 0:03:31.6]} 23... h5 {[%clk 0:04:13.9]} 24. Kc4 {[%clk
0:03:29.7]} 24... h4 {[%clk 0:04:12.9]} 25. Kc5 {[%clk 0:03:28.8]} 25... h3
{[%clk 0:04:12.4]} 26. Kd6 {[%clk 0:03:27.8]} 26... h2 {[%clk 0:04:11.4]} 27.
Kd7 {[%clk 0:03:27.1]} 27... Kf8 {[%clk 0:04:10.8]} 28. d6 {[%clk 0:03:25.9]}
28... h1=Q {[%clk 0:04:10.7]} 29. Kc7 {[%clk 0:03:24.7]} 29... Qc6# {[%clk
0:04:10.6]} 0-1

[Event "Live Chess"]
[Site "Chess.com"]
[Date "2023.05.20"]
[Round "-"]
[White "Reggie016"]
[Black "LL220284LL"]
[Result "0-1"]
[WhiteElo "1070"]
[BlackElo "2392"]
[TimeControl "300"]
[EndTime "13:44:18 PDT"]
[Termination "LL220284LL won by resignation"]

1. e4 {[%clk 0:04:58.4]} 1... g6 {[%clk 0:04:59.9]} 2. d4 {[%clk 0:04:57.1]}
2... d5 {[%clk 0:04:59.2]} 3. e5 {[%clk 0:04:55.2]} 3... c5 {[%clk 0:04:58.8]}
4. c3 {[%clk 0:04:53.8]} 4... Bg7 {[%clk 0:04:57.1]} 5. Nf3 {[%clk 0:04:52.5]}
5... Nc6 {[%clk 0:04:56.3]} 6. Be3 {[%clk 0:04:49]} 6... Bg4 {[%clk 0:04:55.1]}
7. dxc5 {[%clk 0:04:44.9]} 7... Nxe5 {[%clk 0:04:53.4]} 8. Be2 {[%clk
0:04:38.2]} 8... Bxf3 {[%clk 0:04:52.1]} 9. Bxf3 {[%clk 0:04:32.7]} 9... e6
{[%clk 0:04:51.4]} 10. O-O {[%clk 0:04:24.4]} 10... Nf6 {[%clk 0:04:49.1]} 11.
Re1 {[%clk 0:04:01.3]} 11... Nxf3+ {[%clk 0:04:46.9]} 12. Qxf3 {[%clk
0:03:59.6]} 12... O-O {[%clk 0:04:46.8]} 13. Bd4 {[%clk 0:03:49.8]} 13... Ne4
{[%clk 0:04:42.4]} 14. Bxg7 {[%clk 0:03:42.8]} 14... Kxg7 {[%clk 0:04:36.5]} 15.
Na3 {[%clk 0:03:24.8]} 15... Nxc5 {[%clk 0:04:28.4]} 16. b4 {[%clk 0:03:18.3]}
16... Ne4 {[%clk 0:04:26.5]} 17. Nb5 {[%clk 0:03:08.2]} 17... a6 {[%clk
0:04:22.7]} 18. Nd4 {[%clk 0:03:06.4]} 18... Rc8 {[%clk 0:04:21.9]} 19. Rxe4
{[%clk 0:02:57]} 19... dxe4 {[%clk 0:04:19.7]} 20. Qxe4 {[%clk 0:02:56.9]} 20...
Rxc3 {[%clk 0:04:18.5]} 21. Rd1 {[%clk 0:02:47.4]} 21... Qf6 {[%clk 0:04:17.2]}
0-1

[Event "Live Chess"]
[Site "Chess.com"]
[Date "2023.05.20"]
[Round "-"]
[White "siddu198"]
[Black "Inglaterra"]
[Result "1-0"]
[WhiteElo "1624"]
[BlackElo "2044"]
[TimeControl "300"]
[EndTime "13:44:25 PDT"]
[Termination "siddu198 won on time"]

1. d4 {[%clk 0:04:55.7]} 1... d5 {[%clk 0:04:58.6]} 2. Nf3 {[%clk 0:04:53.5]}
2... Nc6 {[%clk 0:04:51.6]} 3. Bf4 {[%clk 0:04:52.5]} 3... Bg4 {[%clk
0:04:49.7]} 4. Nc3 {[%clk 0:04:49.7]} 4... e6 {[%clk 0:04:44.1]} 5. e3 {[%clk
0:04:47.5]} 5... Bd6 {[%clk 0:04:42.6]} 6. g3 {[%clk 0:04:42.2]} 6... Nge7
{[%clk 0:04:23.5]} 7. Be2 {[%clk 0:04:40.6]} 7... h6 {[%clk 0:04:10]} 8. h3
{[%clk 0:04:39]} 8... Bxf3 {[%clk 0:04:07.6]} 9. Bxf3 {[%clk 0:04:38.3]} 9...
Bb4 {[%clk 0:04:04.9]} 10. g4 {[%clk 0:04:35.7]} 10... Qd7 {[%clk 0:03:56.8]}
11. Qd3 {[%clk 0:04:31.3]} 11... Ng6 {[%clk 0:03:12.3]} 12. Bg3 {[%clk
0:04:14.4]} 12... O-O-O {[%clk 0:03:10.1]} 13. a3 {[%clk 0:04:09]} 13... Bxc3+
{[%clk 0:03:00.5]} 14. Qxc3 {[%clk 0:04:08.9]} 14... f6 {[%clk 0:02:43.1]} 15.
h4 {[%clk 0:04:04.6]} 15... e5 {[%clk 0:02:42.4]} 16. dxe5 {[%clk 0:03:54.6]}
16... Ngxe5 {[%clk 0:02:39.6]} 17. Bxe5 {[%clk 0:03:44.6]} 17... Nxe5 {[%clk
0:02:34.9]} 18. Be2 {[%clk 0:03:35.7]} 18... Nxg4 {[%clk 0:02:31.1]} 19. Rg1
{[%clk 0:03:25]} 19... h5 {[%clk 0:02:30.1]} 20. O-O-O {[%clk 0:03:22.4]} 20...
Nxf2 {[%clk 0:02:26.6]} 21. Rdf1 {[%clk 0:03:14]} 21... Ne4 {[%clk 0:02:24]} 22.
Qd3 {[%clk 0:03:11.6]} 22... Kb8 {[%clk 0:02:15]} 23. Bf3 {[%clk 0:03:04.4]}
23... Qe6 {[%clk 0:02:04.6]} 24. Rg6 {[%clk 0:02:54]} 24... Qf5 {[%clk
0:01:35.7]} 25. Rfg1 {[%clk 0:02:47]} 25... Qxf3 {[%clk 0:01:33.2]} 26. Rxg7
{[%clk 0:02:31]} 26... Nd6 {[%clk 0:01:09.3]} 27. R1g3 {[%clk 0:02:15.8]} 27...
Qh1+ {[%clk 0:01:04.3]} 28. Rg1 {[%clk 0:02:14.7]} 28... Qxh4 {[%clk 0:01:02.9]}
29. Qxd5 {[%clk 0:02:11.9]} 29... Qe4 {[%clk 0:00:53.8]} 30. Qc5 {[%clk
0:01:52.3]} 30... Qc6 {[%clk 0:00:42.8]} 31. Qb4 {[%clk 0:01:31.4]} 31... h4
{[%clk 0:00:38.6]} 32. R7g4 {[%clk 0:01:07.3]} 32... h3 {[%clk 0:00:36.2]} 33.
Rh4 {[%clk 0:01:05.9]} 33... Rxh4 {[%clk 0:00:33.4]} 34. Qxh4 {[%clk 0:01:05.2]}
34... Nf5 {[%clk 0:00:19.7]} 35. Qxh3 {[%clk 0:00:59.3]} 35... Qe6 {[%clk
0:00:16.7]} 36. Re1 {[%clk 0:00:53.7]} 36... b6 {[%clk 0:00:13.9]} 37. e4 {[%clk
0:00:51.2]} 37... Nd4 {[%clk 0:00:12.6]} 38. Qe3 {[%clk 0:00:47.3]} 38... Nc6
{[%clk 0:00:10.9]} 39. Qf3 {[%clk 0:00:43]} 39... Ne5 {[%clk 0:00:10.1]} 40. Qg3
{[%clk 0:00:40.3]} 40... Qa2 {[%clk 0:00:08.5]} 41. c3 {[%clk 0:00:20.4]} 41...
Nd3+ {[%clk 0:00:08]} 42. Qxd3 {[%clk 0:00:18.2]} 42... Rxd3 {[%clk 0:00:06.2]}
43. Kc2 {[%clk 0:00:17.8]} 43... Qc4 {[%clk 0:00:05.2]} 44. Rh1 {[%clk
0:00:14.6]} 44... Rf3 {[%clk 0:00:04.3]} 45. Rh8+ {[%clk 0:00:13.3]} 45... Kb7
{[%clk 0:00:04]} 46. Rh7 {[%clk 0:00:13]} 46... Qd3+ {[%clk 0:00:03.4]} 47. Kb3
{[%clk 0:00:12.2]} 47... Qxe4 {[%clk 0:00:03.1]} 48. Rh1 {[%clk 0:00:10.8]}
48... Qe6+ {[%clk 0:00:03]} 49. Kc2 {[%clk 0:00:09]} 49... Rf2+ {[%clk
0:00:02.9]} 50. Kd3 {[%clk 0:00:08.1]} 50... Qd6+ {[%clk 0:00:01.5]} 51. Ke3
{[%clk 0:00:07.5]} 51... Qe5+ {[%clk 0:00:00.2]} 52. Kxf2 {[%clk 0:00:06.9]} 1-0